Cogmind - Beta 16 @@@ ROGUE MODE // 2026.01.05 @ 19:07:36 Player: Sanae Result: Destroyed by G-47 Trooper with Particle Gun Performance ------------- Evolutions (2) 1000 Regions Visited (4) 800 Robots Destroyed (19) 95 Value Destroyed (667) 667 Prototype IDs (0) 0 Alien Tech Used (0) 0 Bonus (0) 0 TOTAL SCORE: 2562 Bonus ------- None Cogmind --------- Core Integrity 0/550 Matter 300/300 Energy 99/100 System Corruption 4% Temperature Cool (9) Movement Core (50) Location -8/Storage Parts ------- > --- POWER (1) -------- (None) > --- PROPULSION (4) --- (None) > --- UTILITY (4) ------ (None) > --- WEAPON (2) ------- (None) > --- INVENTORY (5) ---- Subdweller Power Source Compact Battery (200) Subdweller Laser Light Assault Rifle Grenade Launcher Peak State ------------ > --- POWER ------------ Subdweller Power Source > --- PROPULSION ------- Aluminum Leg Improved Aluminum Leg Improved Aluminum Leg Improved Aluminum Leg > --- UTILITY ---------- Heat Sink Medium Storage Unit Compact Battery Advanced Visual Processing Unit > --- WEAPON ----------- Shotgun Shotgun > --- INVENTORY -------- Subdweller Power Source Aluminum Leg Small Storage Unit Compact Battery Subdweller Laser Light Assault Rifle Subdweller Machine Gun Grenade Launcher Grenade Launcher [Rating: 22] Favorites ----------- Power Light Ion Engine Engine Light Ion Engine Power Core Light Nuclear Core Propulsion Improved Aluminum Leg Treads Light Treads Leg Improved Aluminum Leg Utility Heat Sink Device Heat Sink Storage Small Storage Unit Processor Advanced Visual Processing Unit Weapon Shotgun Energy Gun Small Laser Ballistic Gun Shotgun Build | -11 -10 -10 -8 -8 ------- Run | Yrd Mat Sub Mat Sto Slots Evolved 4 | . . . 4 . Power . | . . . . . Propulsion 2 | . . . 2 . Utility 2 | . . . 2 . Weapon . | . . . . . Parts Attached 22 | 7 3 4 8 . Power 4 | 1 . 1 2 . Engine 3 | 1 . 1 1 . Core 1 | . . . 1 . Reactor . | . . . . . Propulsion 7 | 3 2 1 1 . Treads 1 | 1 . . . . Leg 6 | 2 2 1 1 . Wheel . | . . . . . Hover . | . . . . . Flight . | . . . . . Utility 5 | 1 1 . 3 . Device 1 | . 1 . . . Storage 3 | 1 . . 2 . Processor 1 | . . . 1 . Hackware . | . . . . . Protection . | . . . . . Artifact . | . . . . . Weapon 6 | 2 . 2 2 . Energy Gun 1 | 1 . . . . Energy Cannon . | . . . . . Ballistic Gun 5 | 1 . 2 2 . Ballistic Cannon . | . . . . . Launcher . | . . . . . Special Weapon . | . . . . . Impact Weapon . | . . . . . Slashing Weapon . | . . . . . Piercing Weapon . | . . . . . Special Melee Weapon . | . . . . . Unidentified Prototypes . | . . . . . Parts Lost 12 | . . 4 8 . Power 2 | . . 1 1 . Propulsion 5 | . . 1 4 . Utility 1 | . . . 1 . Weapon 4 | . . 2 2 . Highest Loss Streak 4 | . . 4 4 . To Critical Strikes . | . . . . . Average Backups 7 | 2 7 7 8 5 Power 1 | . 1 1 1 1 Propulsion 2 | 1 3 3 . . Utility . | . . . 1 1 Weapon 2 | . 2 2 4 3 Tool/Special . | . . . . . Unused Backups 7 | . 1 . 1 5 Power 1 | . . . . 1 Propulsion 1 | . 1 . . . Utility 1 | . . . . 1 Weapon 4 | . . . 1 3 Tool/Special . | . . . . . Average Slot Usage (%) 92 | . 91 99 77 . Engine 12 | . 14 13 7 . Leg 26 | . 28 27 25 . Device 11 | . 6 14 4 . Storage 13 | . 14 14 13 . Processor 1 | . . . 8 . Energy Gun 3 | . 14 3 . . Ballistic Gun 22 | . 14 24 16 . Peak Build Rating 22 | 6 10 12 22 . Average Rating 11 | 4 8 11 17 . On Entrance 5 | . 6 10 12 . Avg Prop Armor Cover (%) . | . . . . . Naked Turns 87 | . . . 21 66 Heaviest Build 23 | 11 12 15 23 . Greatest Support 49 | 20 26 26 49 3 Greatest Overweight (x) 7 | . . . 7 . Average Overweight (x) . | . . . . . Largest Inventory Capacity 10 | 8 8 8 10 5 Average Capacity 8 | 6 8 8 9 5 Most Carried 10 | 4 8 8 10 5 Average Carried 7 | 2 7 7 8 5 Final Capacity 8 | 8 8 8 5 5 Final Carried 8 | 4 8 8 5 5 Class Distribution -------------------- 100% | Mutant Dominant Class ---------------- Mutant | -10/Materials Mutant | -10/Subcaves Mutant | -8/Materials Mutant | -8/Storage Resources | -11 -10 -10 -8 -8 ----------- Run | Yrd Mat Sub Mat Sto Matter Collected 799 | 161 40 263 335 . Remotely . | . . . . . Salvage Created 651 | . 20 160 471 . Parts 32 | . 1 10 21 . Haulers Intercepted . | . . . . . Recyclers Shooed . | . . . . . Parts Field Recycled . | . . . . . Retrieved Matter . | . . . . . Parts Self-Destructed . | . . . . . Prevented . | . . . . . Parts Restored . | . . . . . Kills | -11 -10 -10 -8 -8 ------- Run | Yrd Mat Sub Mat Sto Combat Hostiles Destroyed 17 | . . 4 13 . Guns 17 | . . 4 13 . Classes Destroyed 7 | . 1 1 5 . Worker 1 | . . . 1 . Watcher 1 | . 1 . . . Swarmer 3 | . . . 3 . Grunt 8 | . . . 8 . Brawler 1 | . . . 1 . Sentry 1 | . . . 1 . Subdweller 4 | . . 4 . . Best Kill Streak 7 | . 1 2 7 . Combat Bots Only 6 | . . 2 6 . Max Kills in Single Turn 2 | . 1 2 2 . Gunslinging 1 | . . 1 1 . Exploded . | . . . . . Melee . | . . . . . Uniques/NPCs Destroyed . | . . . . . Combat | -11 -10 -10 -8 -8 -------- Run | Yrd Mat Sub Mat Sto Hostile Shots Fired 210 | . 1 50 79 80 Missed 78 | . . 16 30 32 Hits 132 | . 1 34 49 48 Melee 1 | . . . 1 . Projectile 131 | . 1 34 48 48 Critical Strikes 2 | . . 1 . 1 Damage Taken 2087 | . 36 741 767 543 Core 727 | . 7 169 8 543 Absorbed by Shields . | . . . . . Core Remaining (%) 64 | 100 . 29 . . Volleys Fired 65 | . 2 29 34 . Largest 2 | . 2 2 2 . Hottest 60 | . 60 60 55 . Shots Fired 128 | . 4 58 66 . Gun 128 | . 4 58 66 . Cannon . | . . . . . Launcher . | . . . . . Special . | . . . . . Kinetic 108 | . 2 40 66 . Thermal 20 | . 2 18 . . Explosive . | . . . . . Electromagnetic . | . . . . . Robot Hit Streak 15 | . 3 15 10 . Robot Miss Streak 6 | . . 3 6 . Penetration Max . | . . . . . Secondary Targets 6 | . . 2 4 . Max Gunslinging Chain 1 | . . 1 1 . Shots Hit Robots 96 | . 3 43 50 . Core Hits 41 | . 2 11 28 . Critical Kills 1 | . . . 1 . Critical Parts Destroyed . | . . . . . Critical Strikes 1 | . . . 1 . Destroy 1 | . . . 1 . Melee Attacks . | . . . . . Impact . | . . . . . Slashing . | . . . . . Piercing . | . . . . . Sneak Attacks . | . . . . . Combat Hostiles . | . . . . . Follow-up Attacks . | . . . . . Damage Inflicted 1254 | . 31 334 864 25 Guns 1225 | . 31 330 864 . Cannons . | . . . . . Explosions . | . . . . . Melee . | . . . . . Ramming 29 | . . 4 . 25 Kinetic 1162 | . 11 287 864 . Thermal 63 | . 20 43 . . Explosive . | . . . . . Electromagnetic . | . . . . . Impact . | . . . . . Slashing . | . . . . . Piercing . | . . . . . Highest Corruption 4 | . . . 1 4 Average Corruption 1 | . . . 1 2 Corruption Purged . | . . . . . Corruption Blocked . | . . . . . Overload Shots . | . . . . . Overflow Damage . | . . . . . Projectiles . | . . . . . Explosions . | . . . . . Melee . | . . . . . Knockbacks . | . . . . . Impact . | . . . . . Kinetic . | . . . . . Secondary . | . . . . . Self-Inflicted Damage 21 | . . 4 . 17 Shots . | . . . . . Rammed 4 | . . . . 4 Targets Rammed 4 | . . . . 4 Kicked . | . . . . . Crushed . | . . . . . Highest Temperature 19 | . 2 . 19 . Average Temperature 6 | . 2 . 7 . Received Heat Transfer 546 | . 18 78 369 81 Siege Activations . | . . . . . Martial Activations . | . . . . . Shielding Activations . | . . . . . Robots Disrupted . | . . . . . Combat Hostiles . | . . . . . Robots Corrupted . | . . . . . Combat Hostiles . | . . . . . Parts Fried . | . . . . . Impact Corruptions . | . . . . . Robots Melted . | . . . . . Combat Hostiles . | . . . . . Parts Melted 1 | . 1 . . . Heat Transferred 150 | . 50 100 . . Parts Sabotaged . | . . . . . Parts Stolen . | . . . . . Parts Stripped . | . . . . . Power Chain Reactions . | . . . . . Alert | -11 -10 -10 -8 -8 ------- Run | Yrd Mat Sub Mat Sto Maximum Alert Level . | . . . . . Low Security (%) 100 | 100 100 . 100 100 Level 1 . | . . . . . Level 2 . | . . . . . Level 3 . | . . . . . Level 4 . | . . . . . Level 5 . | . . . . . High Security . | . . . . . Max Security . | . . . . . Peak Influence 190 | . 7 . 190 107 Initial 63 | . . . . 63 Average 61 | . . . 89 80 Influence Increases 431 | . 7 . 360 64 Destroy 0b10 Robot/C 260 | . . . 260 . Destroy 0b10 Robot/NC 10 | . 5 . 5 . Destroy Leader 52 | . 2 . 50 . Successful Hack 19 | . . . . 19 Lose Combat Pursuer 90 | . . . 45 45 Influence Decreases 334 | . 7 . 208 119 Entered New Map 89 | . . . . 89 Time Decay 165 | . 7 . 128 30 Lost Part 80 | . . . 80 . Squads Dispatched 3 | . 1 . 1 1 Investigation . | . . . . . Extermination . | . . . . . Reinforcement 3 | . 1 . 1 1 Assault . | . . . . . Garrison . | . . . . . Intercept . | . . . . . Searches Triggered . | . . . . . Construction Impeded . | . . . . . Haulers Reinforced . | . . . . . Active Scanning Responses . | . . . . . Cargo Convoy Interrupts . | . . . . . Stealth | -11 -10 -10 -8 -8 --------- Run | Yrd Mat Sub Mat Sto Distress Signals 4 | . . . 2 2 Communications Jammed . | . . . . . Distress Signals . | . . . . . Times Spotted 54 | . 6 8 23 17 Peak Tracking Total 13 | . 4 3 7 13 Tactical Retreats 5 | . . 2 2 1 Traps | -11 -10 -10 -8 -8 ------- Run | Yrd Mat Sub Mat Sto Traps Triggered 1 | . . . 1 . Indirectly . | . . . . . Trap Hack Attempts . | . . . . . Triggered . | . . . . . Disarmed . | . . . . . Reprogrammed . | . . . . . Reused . | . . . . . Traps Extracted . | . . . . . Installed . | . . . . . Triggered . | . . . . . Machines | -11 -10 -10 -8 -8 ---------- Run | Yrd Mat Sub Mat Sto Machines Disabled . | . . . . . Max in Single Turn . | . . . . . Machines Repaired . | . . . . . Machines Dismantled . | . . . . . Machines Sabotaged . | . . . . . Overloaded Fab Kills . | . . . . . Hacking | -11 -10 -10 -8 -8 --------- Run | Yrd Mat Sub Mat Sto Machines Accessed 4 | . . . 1 3 Terminals 4 | . . . 1 3 Fabricators . | . . . . . Repair Stations . | . . . . . Recycling Units . | . . . . . Scanalyzers . | . . . . . Garrison Access . | . . . . . Total Hacks 8 | . . . 1 7 Successful 5 | . . . 1 4 Failed 3 | . . . . 3 Catastrophic . | . . . . . Database Lockouts . | . . . . . Manual 3 | . . . . 3 Terminals 8 | . . . 1 7 Fabricators . | . . . . . Repair Stations . | . . . . . Recycling Units . | . . . . . Scanalyzers . | . . . . . Garrison Access . | . . . . . Terminal Hacks 5 | . . . 1 4 Record 1 | . . . . 1 Open Door 1 | . . . . 1 Zone Layout 3 | . . . 1 2 Fabricator Hacks . | . . . . . Repair Station Hacks . | . . . . . Recycling Unit Hacks . | . . . . . Scanalyzer . | . . . . . Garrison Access Hacks . | . . . . . Unauthorized Hacks . | . . . . . Terminals . | . . . . . Fabricators . | . . . . . Repair Stations . | . . . . . Recycling Units . | . . . . . Scanalyzers . | . . . . . Garrison Access . | . . . . . Data Cores Recovered . | . . . . . Used . | . . . . . Hacking Detections 2 | . . . . 2 Full Trace Events . | . . . . . Feedback Events . | . . . . . Feedback Blocked . | . . . . . Robot Schematics Acquired . | . . . . . Robots Built . | . . . . . Authchips . | . . . . . Time . | . . . . . Total Robot Build Rating . | . . . . . Part Schematics Acquired . | . . . . . Parts Built . | . . . . . Authchips . | . . . . . Time . | . . . . . Total Part Build Rating . | . . . . . Part Studies Acquired . | . . . . . Parts Repaired . | . . . . . Time . | . . . . . Parts Recycled . | . . . . . Recycled Matter . | . . . . . Retrieved Matter . | . . . . . Retrieved Components . | . . . . . Parts Scanalyzed . | . . . . . Part Schematics Acquired . | . . . . . Parts Damaged . | . . . . . Bothacking | -11 -10 -10 -8 -8 ------------ Run | Yrd Mat Sub Mat Sto Used RIF Installer . | . . . . . Robots Hacked . | . . . . . Non-combat . | . . . . . Combat . | . . . . . Robot Hacks Applied . | . . . . . Relay Couplers Released . | . . . . . Fabnet Peak Effective % . | . . . . . Robots Rewired . | . . . . . Allies Hacked . | . . . . . Hacks Repelled . | . . . . . Allies | -11 -10 -10 -8 -8 -------- Run | Yrd Mat Sub Mat Sto Total Allies . | . . . . . Largest Group . | . . . . . Highest-Rated Group . | . . . . . Highest-Rated Ally . | . . . . . Total Orders . | . . . . . Ally Attacks . | . . . . . Total Damage . | . . . . . Kills . | . . . . . Allies Corrupted . | . . . . . Allies Melted . | . . . . . Intel | -11 -10 -10 -8 -8 ------- Run | Yrd Mat Sub Mat Sto Active Infowar (turns) 383 | . . . 383 . Optics 383 | . . . 383 . Robot Analysis Total . | . . . . . Derelict Logs Recovered 1 | . . 1 . . Drone Launches . | . . . . . Drone Recoveries . | . . . . . Exploration | -11 -10 -10 -8 -8 ------------- Run | Yrd Mat Sub Mat Sto Turns Passed 2464 | 60 158 1762 418 66 Spaces Moved 1733 | 38 99 1273 204 119 Core 170 | 2 . . 49 119 Treads 5 | 5 . . . . Legs 1558 | 31 99 1273 155 . Wheels . | . . . . . Hover . | . . . . . Flight . | . . . . . Fastest Speed 50 | 50 120 120 50 50 Average Speed 116 | 121 120 120 129 50 Slowest Speed 400 | 160 120 120 400 50 Overloaded Moves . | . . . . . Propulsion Burnouts . | . . . . . Robots Hopped . | . . . . . Potential Cave-ins . | . . . . . Cave-ins Triggered . | . . . . . Exploration Rate (%) 30 | 3 31 61 25 31 Regions Visited 4 Branch Regions 2 Pre-discovered Areas . | . . . . . Known Exits Taken . | . . . . . Unknown Exits Taken 4 | 1 1 1 1 . Scrap Searched . | . . . . . Spaces Dug . | . . . . . Terrain Destroyed . | . . . . . Melee . | . . . . . Projectile . | . . . . . AOE . | . . . . . Terrain Rammed 2 | . . 1 . 1 Walls Destroyed . | . . . . . Machines Disabled . | . . . . . Actions | -11 -10 -10 -8 -8 --------- Run | Yrd Mat Sub Mat Sto Total 2046 | 48 133 1449 291 125 Wait 198 | . 22 139 36 1 Move 1729 | 37 98 1272 203 119 Hop . | . . . . . Pick Up 20 | 4 6 4 6 . Fast Attach 9 | 6 1 . 2 . Attach 11 | . . 4 7 . Detach 1 | . . . 1 . Swap 4 | 1 2 . 1 . Drop 3 | . 2 . 1 . Fire 65 | . 2 29 34 . Melee . | . . . . . Ram 6 | . . 1 . 5 Kick . | . . . . . Crush . | . . . . . Escape Stasis . | . . . . . Rewire . | . . . . . Trap . | . . . . . Miscellaneous . | . . . . . Route ------- -11/Scrapyard -10/Materials -10/Subcaves -8/Materials -8/Storage History --------- Turn | Location | Event 13 | -11/Scrapyard | Discovered new exit (range 16) 61 | -11/Scrapyard | Entered Materials 62 | -10/Materials | Met a group of wandering Federalists 216 | -10/Materials | Discovered new exit (range 3) 219 | -10/Materials | Entered Subcaves 220 | -10/Subcaves | Continued accompanying wandering Federalists (3) 223 | -10/Subcaves | Learned Materials stockpile data 317 | -10/Subcaves | Build established: Mutant 478 | -10/Subcaves | Lost 6 allies 553 | -10/Subcaves | Disturbed a concealed Subdweller 624 | -10/Subcaves | Core integrity fell below 50% 651 | -10/Subcaves | Lost 4 parts (1p1n2w) 1979 | -10/Subcaves | Discovered new exit (range 3) 1981 | -10/Subcaves | Entered Materials 1981 | -8/Materials | Evolved 4 slots: Propulsion x2, Utility x2 2277 | -8/Materials | Lost 4 parts (3n1u) 2374 | -8/Materials | Lost 4 parts (1p1n2w) 2378 | -8/Materials | Released all parts (6) 2390 | -8/Materials | Discovered new exit (range 12) 2399 | -8/Materials | Entered Storage 2450 | -8/Storage | Core integrity fell below 50% 2461 | -8/Storage | Core integrity fell below 20% 2465 | -8/Storage | Destroyed by G-47 Trooper with Particle Gun Last Messages --------------- Slammed into K-01 Serf. Destabilizing: System corrupted (+2). W-25 Informer sends out distress signal. C-30 ARC bursts open, deploying its payload. S-10 Pest unfolds itself. O-16 Technician uses terminal to summon reinforcements. ALERT: Hostiles spotted, dispatching reinforcements to Terminal S002. O-16 Technician locks terminal. Connecting with Terminal... >>Layout(Zone) Retrieving Zone 3I layout... Downloaded map data. Slammed into Wall. Destabilizing: Core damaged (-16). Destabilizing: System corrupted (+1). Slammed into Y-45 Defender. S-10 Pest destroyed. U-05 Engineer destroyed. Map ----- +----------------------------------------------------+ | ??????# # #????????## T#??????????????????? | | ??????# # #????????## #???????????????????? | | ??????# + #????????###+###??????????????????? | | ??????# T## ########## #??????????????????? | | ??????###### #??????????????????? | | ???????????# #??????????????????? | | ???????????# #??????????????????? | | ???????????## ########### #??????????????????? | | ????????????# #########?### ###??????????????????? | | ????????????# # #???# #????????????????????? | | ????????????# # #####+#####????????????????? | | ????????????# # ## % #????????????????? | | ????????????# # ## #????????????????? | | ????????????# # ## #????????????????? | | ????????????# # ## #????????????????? | | ????????????# # ## #????????????????? | | #########???# # ## #????????????????? | | ? #???# # ## #????????????????? | | #""" #???# # ## #????????????????? | | #""" ##### # ## g #????????????????? | | #""" # ####+#########g######??????????????? | | # # l #??????????????? | | #""" + T s #??????????????? | | #""" # %% #??????????????? | | #""" # ####/##### u ########??????????????? | | # ####### %% ## @ #?????????????????????? | | # #?????# """ "# #?????????????????????? | | # #?????# """ T# #?????????????????????? | | ##### ###?????# """ "# !%#####?????????????????? | | ????###???????# ##%r + #?????????????????? | | ??????????????# """ ## # #?????????????????? | | ??????????????# """ ##a # #?????????????????? | | ??????????????# """ ## #####?????????????????? | | ??????????????# ##g #?####????????????????? | | ??????????????##"T"## ## g #?# ????????????????? | | ???????????????#"""##### ### ????????????????? | | ??????????????########## ## ""????????????????? | | ??????????????########## ### ""????????????????? | | ??????????????## " # #?# ""????????????????? | | ??????????????## " / #?# ""????????????????? | | ??????????????## " # #?# ""????????????????? | | ??????????????#######T## #?# ????????????????? | | ??????????????########## #?####????????????????? | | ?????????????########### ##????????????????????? | | ?????????????# # #####????????????????? | | ?????????????# """ # ????????????????? | | ?????????????# """ + ????????????????? | | ?????????????# """ # ????????????????? | | ?????????????# # #####????????????????? | | ?????????????# """ ######## ????????????????? | +----------------------------------------------------+ Best States ------------- Heat Dissipation 41 Energy Generation 15 Energy Capacity 400 Matter Stores 300 Matter Capacity 300 Sight Range 20 Terrain Scan Density 10 Evasion (%) 55 Recoil Reduction 1 Item Schematics ----------------- None Robot Schematics ------------------ None Fabricated ------------ Nothing Repaired ---------- Nothing Studied --------- None Alien Tech Used ----------------- None Achievements -------------- Strength In Numbers Challenges ------------ None Game ------ Seed GravjetCoolantStick Manual? 0 Play Time 00:25:18 Cumulative 4.3 hours Start 2026.01.04 @ 17:46:40 End 2026.01.05 @ 19:07:36 Sessions 2 Manual Loads 0 Difficulty Rogue Special Mode None Game No. 7 Rogue 7 Adventurer 0 Explorer 0 Win Type - Total 0 Types 0/0/0/0/0/0/0/0/0/0 Lore% 3 Gallery% 8 Achievement% 9 Wizard Run 0 Options --------- Layout 1 ASCII 0 Keyboard 0 Movement Mouse Keybinds 0 Fullscreen 0 Font 36/Smallcaps Map View 50x35 Zoom Use 0% Tactical HUD 0 Map Filters NONE Filters NONE Steam 1 RUN: 59885fb6-b023-432c-a081-e4b61215f0b3